Cogmind - Beta 17 @@@ ROGUE MODE // 2026.08.19 @ 14:22:06 Player: Rocko1345 Result: Destroyed by 0S-OX3(R) with Subdweller Laser Performance ------------- Evolutions (0) 0 Regions Visited (2) 400 Robots Destroyed (11) 55 Value Destroyed (164) 164 Prototype IDs (0) 0 Alien Tech Used (0) 0 Bonus (0) 0 TOTAL SCORE: 619 Bonus ------- None Cogmind --------- Core Integrity 0/250 Matter 268/300 Energy 200/200 System Corruption 0% Temperature Cool (6) Movement Core (350) Ox6 Location -10/Subcaves Parts ------- > --- POWER (1) -------- Subdweller Power Source > --- PROPULSION (2) --- Subdweller Monowheel > --- UTILITY (2) ------ Medium Storage Unit Subdweller Optics > --- WEAPON (2) ------- Assault Rifle > --- INVENTORY (10) --- Subdweller Optics ECM Suite Makeshift Hacking Suite Subdweller Laser Light Assault Rifle Subdweller Machine Gun Subdweller Machine Gun Subdweller Shrapnel Launcher Peak State ------------ > --- POWER ------------ Subdweller Power Source > --- PROPULSION ------- Subdweller Monowheel Subdweller Monowheel > --- UTILITY ---------- Medium Storage Unit Subdweller Optics > --- WEAPON ----------- Assault Rifle Barrage Gun > --- INVENTORY -------- Aluminum Leg ECM Suite Makeshift Hacking Suite Subdweller Laser Assault Rifle Light Assault Rifle Subdweller Machine Gun Subdweller Machine Gun [Rating: 14] Favorites ----------- Power Light Ion Engine Engine Light Ion Engine Propulsion Aluminum Leg Leg Aluminum Leg Wheel Subdweller Monowheel Utility Medium Storage Unit Device ECM Suite Storage Medium Storage Unit Weapon Assault Rifle Ballistic Gun Assault Rifle Build | -11 -10 -10 ------- Run | Yrd Mat Sub Slots Evolved . | . . . Power . | . . . Propulsion . | . . . Utility . | . . . Weapon . | . . . Parts Attached 16 | 6 4 6 Power 2 | 1 . 1 Engine 2 | 1 . 1 Core . | . . . Reactor . | . . . Propulsion 5 | 2 . 3 Treads . | . . . Leg 3 | 2 . 1 Wheel 2 | . . 2 Hover . | . . . Flight . | . . . Utility 4 | 1 2 1 Device 2 | . 1 1 Storage 2 | 1 1 . Processor . | . . . Hackware . | . . . Protection . | . . . Artifact . | . . . Weapon 5 | 2 2 1 Energy Gun . | . . . Energy Cannon . | . . . Ballistic Gun 5 | 2 2 1 Ballistic Cannon . | . . . Launcher . | . . . Special Weapon . | . . . Impact Weapon . | . . . Slashing Weapon . | . . . Piercing Weapon . | . . . Special Melee Weapon . | . . . Unidentified Prototypes . | . . . Parts Lost 4 | . . 4 Power 1 | . . 1 Propulsion 1 | . . 1 Utility . | . . . Weapon 2 | . . 2 Highest Loss Streak 2 | . . 2 To Critical Strikes . | . . . Average Backups 4 | . 3 5 Power . | . . . Propulsion 1 | . 1 1 Utility . | . . . Weapon 2 | . 1 3 Tool/Special . | . . . Unused Backups 7 | . . 7 Power . | . . . Propulsion 1 | . . 1 Utility 2 | . . 2 Weapon 4 | . . 4 Tool/Special . | . . . Average Slot Usage (%) 95 | . 94 95 Engine 11 | . 14 10 Leg 23 | . 28 21 Wheel 4 | . . 5 Device 12 | . 8 14 Storage 14 | . 14 14 Ballistic Gun 27 | . 28 27 Peak Build Rating 14 | 6 7 14 Average Rating 7 | 4 6 8 On Entrance 4 | . 6 7 Avg Prop Armor Cover (%) 14 | 34 . 6 Naked Turns . | . . . Heaviest Build 22 | 11 19 22 Greatest Support 40 | 20 20 40 Greatest Overweight (x) 7 | 1 . 7 Average Overweight (x) . | . . . Largest Inventory Capacity 10 | 8 10 10 Average Capacity 9 | 7 9 10 Most Carried 9 | . 4 9 Average Carried 4 | . 3 5 Final Capacity 10 | 8 10 10 Final Carried 8 | . 4 8 Class Distribution -------------------- 100% | Mutant Dominant Class ---------------- Mutant | -10/Materials Mutant | -10/Subcaves Resources | -11 -10 -10 ----------- Run | Yrd Mat Sub Matter Collected 609 | 195 47 367 Remotely . | . . . Salvage Created 215 | . 93 122 Parts 20 | . 6 14 Haulers Intercepted . | . . . Recyclers Shooed . | . . . Parts Field Recycled . | . . . Retrieved Matter . | . . . Parts Self-Destructed 11 | . . 11 Prevented . | . . . Parts Restored . | . . . Kills | -11 -10 -10 ------- Run | Yrd Mat Sub Combat Hostiles Destroyed 11 | . 4 7 Guns 11 | . 4 7 Classes Destroyed 3 | . 2 1 Swarmer 9 | . 3 6 Grunt 1 | . 1 . Subdweller 1 | . . 1 Best Kill Streak 3 | . 3 3 Combat Bots Only 3 | . 3 3 Max Kills in Single Turn 1 | . 1 1 Gunslinging . | . . . Exploded . | . . . Melee . | . . . Uniques/NPCs Destroyed . | . . . Combat | -11 -10 -10 -------- Run | Yrd Mat Sub Hostile Shots Fired 89 | . 25 64 Missed 22 | . 10 12 Hits 67 | . 15 52 Projectile 67 | . 15 52 AOE 2 | . . 2 Critical Strikes 1 | . . 1 Damage Taken 1024 | . 153 871 Core 268 | . 23 245 Absorbed by Shields . | . . . Core Remaining (%) 100 | 100 . . Volleys Fired 50 | . 19 31 Largest 2 | . 2 2 Hottest 48 | . 40 48 Shots Fired 100 | . 38 62 Gun 100 | . 38 62 Cannon . | . . . Launcher . | . . . Special . | . . . Kinetic 100 | . 38 62 Thermal . | . . . Explosive . | . . . Electromagnetic . | . . . Robot Hit Streak 14 | . 5 14 Robot Miss Streak 9 | . 4 9 Penetration Max . | . . . Secondary Targets 3 | . . 3 Max Gunslinging Chain 1 | . . 1 Shots Hit Robots 53 | . 18 35 Core Hits 16 | . 7 9 Critical Kills . | . . . Critical Parts Destroyed 1 | . 1 . Critical Strikes 1 | . 1 . Destroy 1 | . 1 . Melee Attacks . | . . . Impact . | . . . Slashing . | . . . Piercing . | . . . Sneak Attacks . | . . . Combat Hostiles . | . . . Follow-up Attacks . | . . . Damage Inflicted 674 | . 222 452 Guns 670 | . 218 452 Cannons . | . . . Explosions . | . . . Melee . | . . . Ramming 4 | . 4 . Kinetic 670 | . 218 452 Thermal . | . . . Explosive . | . . . Electromagnetic . | . . . Impact . | . . . Slashing . | . . . Piercing . | . . . Highest Corruption . | . . . Average Corruption . | . . . Corruption Purged . | . . . Corruption Blocked . | . . . Overload Shots . | . . . Overflow Damage . | . . . Projectiles . | . . . Explosions . | . . . Melee . | . . . Knockbacks . | . . . Impact . | . . . Kinetic . | . . . Secondary . | . . . Self-Inflicted Damage . | . . . Shots . | . . . Rammed . | . . . Targets Rammed 2 | . 2 . Kicked 2 | . 2 . Crushed . | . . . Highest Temperature . | . . . Average Temperature . | . . . Received Heat Transfer 114 | . 48 66 Siege Activations . | . . . Martial Activations . | . . . Shielding Activations . | . . . Robots Disrupted . | . . . Combat Hostiles . | . . . Robots Corrupted . | . . . Combat Hostiles . | . . . Parts Fried . | . . . Impact Corruptions . | . . . Robots Melted . | . . . Combat Hostiles . | . . . Parts Melted . | . . . Heat Transferred . | . . . Parts Sabotaged . | . . . Parts Stolen . | . . . Parts Stripped . | . . . Power Chain Reactions . | . . . Alert | -11 -10 -10 ------- Run | Yrd Mat Sub Maximum Alert Level . | . . . Low Security (%) 100 | 100 100 . Level 1 . | . . . Level 2 . | . . . Level 3 . | . . . Level 4 . | . . . Level 5 . | . . . High Security . | . . . Max Security . | . . . Peak Influence 70 | . 70 . Initial . | . . . Average 17 | . 21 . Influence Increases 240 | . 100 140 Destroy 0b10 Robot/C 200 | . 80 120 Destroy Leader 40 | . 20 20 Influence Decreases 240 | . 100 140 Time Decay 220 | . 100 120 Lost Part 20 | . . 20 Squads Dispatched 1 | . 1 . Investigation . | . . . Extermination . | . . . Reinforcement 1 | . 1 . Assault . | . . . Garrison . | . . . Intercept . | . . . Searches Triggered . | . . . Construction Impeded . | . . . Haulers Reinforced . | . . . Active Scanning Responses . | . . . Cargo Convoy Interrupts . | . . . Stealth | -11 -10 -10 --------- Run | Yrd Mat Sub Distress Signals . | . . . Communications Jammed . | . . . Distress Signals . | . . . Times Spotted 15 | . 5 10 Peak Tracking Total 3 | . 2 3 Tactical Retreats . | . . . Traps | -11 -10 -10 ------- Run | Yrd Mat Sub Traps Triggered 1 | . . 1 Indirectly . | . . . Trap Hack Attempts . | . . . Triggered . | . . . Disarmed . | . . . Reprogrammed . | . . . Reused . | . . . Traps Extracted . | . . . Installed . | . . . Triggered . | . . . Machines | -11 -10 -10 ---------- Run | Yrd Mat Sub Machines Disabled . | . . . Max in Single Turn . | . . . Machines Repaired . | . . . Machines Dismantled . | . . . Machines Sabotaged . | . . . Overloaded Fab Kills . | . . . Hacking | -11 -10 -10 --------- Run | Yrd Mat Sub Machines Accessed . | . . . Terminals . | . . . Fabricators . | . . . Repair Stations . | . . . Recycling Units . | . . . Scanalyzers . | . . . Garrison Access . | . . . Total Hacks . | . . . Successful . | . . . Failed . | . . . Catastrophic . | . . . Database Lockouts . | . . . Manual . | . . . Terminals . | . . . Fabricators . | . . . Repair Stations . | . . . Recycling Units . | . . . Scanalyzers . | . . . Garrison Access . | . . . Terminal Hacks . | . . . Fabricator Hacks . | . . . Repair Station Hacks . | . . . Recycling Unit Hacks . | . . . Scanalyzer . | . . . Garrison Access Hacks . | . . . Unauthorized Hacks . | . . . Terminals . | . . . Fabricators . | . . . Repair Stations . | . . . Recycling Units . | . . . Scanalyzers . | . . . Garrison Access . | . . . Data Cores Recovered . | . . . Used . | . . . Hacking Detections . | . . . Full Trace Events . | . . . Feedback Events . | . . . Feedback Blocked . | . . . Robot Schematics Acquired . | . . . Robots Built . | . . . Authchips . | . . . Time . | . . . Total Robot Build Rating . | . . . Part Schematics Acquired . | . . . Parts Built . | . . . Authchips . | . . . Time . | . . . Total Part Build Rating . | . . . Part Studies Acquired . | . . . Parts Repaired . | . . . Time . | . . . Parts Recycled . | . . . Recycled Matter . | . . . Retrieved Matter . | . . . Retrieved Components . | . . . Parts Scanalyzed . | . . . Part Schematics Acquired . | . . . Parts Damaged . | . . . Bothacking | -11 -10 -10 ------------ Run | Yrd Mat Sub Used RIF Installer . | . . . Robots Hacked . | . . . Non-combat . | . . . Combat . | . . . Robot Hacks Applied . | . . . Relay Couplers Released . | . . . Fabnet Peak Effective % . | . . . Robots Rewired . | . . . Allies Hacked . | . . . Hacks Repelled . | . . . Allies | -11 -10 -10 -------- Run | Yrd Mat Sub Total Allies . | . . . Largest Group . | . . . Highest-Rated Group . | . . . Highest-Rated Ally . | . . . Total Orders . | . . . Ally Attacks . | . . . Total Damage . | . . . Kills . | . . . Allies Corrupted . | . . . Allies Melted . | . . . Intel | -11 -10 -10 ------- Run | Yrd Mat Sub Active Infowar (turns) 710 | . 186 524 Optics 118 | . . 118 ECM 592 | . 186 406 Robot Analysis Total . | . . . Derelict Logs Recovered 1 | . . 1 Drone Launches . | . . . Drone Recoveries . | . . . Exploration | -11 -10 -10 ------------- Run | Yrd Mat Sub Turns Passed 1059 | 76 283 700 Spaces Moved 708 | 67 158 483 Core 23 | 20 . 3 Treads . | . . . Legs 575 | 47 158 370 Wheels 110 | . . 110 Hover . | . . . Flight . | . . . Fastest Speed 50 | 50 120 110 Average Speed 119 | 100 120 121 Slowest Speed 400 | 120 120 400 Overloaded Moves . | . . . Propulsion Burnouts . | . . . Robots Hopped . | . . . Potential Cave-ins . | . . . Cave-ins Triggered . | . . . Exploration Rate (%) 16 | 3 18 28 Regions Visited 2 Branch Regions 1 Pre-discovered Areas . | . . . Known Exits Taken . | . . . Unknown Exits Taken 2 | 1 1 . Scrap Searched 3 | . . 3 Spaces Dug . | . . . Terrain Destroyed . | . . . Melee . | . . . Projectile . | . . . AOE . | . . . Terrain Rammed . | . . . Walls Destroyed . | . . . Machines Disabled . | . . . Actions | -11 -10 -10 --------- Run | Yrd Mat Sub Total 818 | 72 213 533 Wait 28 | . 28 . Move 706 | 66 157 483 Hop . | . . . Pick Up 9 | . 2 7 Fast Attach 9 | 6 2 1 Attach 1 | . . 1 Detach . | . . . Swap 8 | . 2 6 Drop 5 | . 1 4 Fire 50 | . 19 31 Melee . | . . . Ram . | . . . Kick 2 | . 2 . Crush . | . . . Escape Stasis . | . . . Rewire . | . . . Trap . | . . . Miscellaneous . | . . . Route ------- -11/Scrapyard -10/Materials -10/Subcaves (discovered 1 exit: [*Mat]) History --------- Turn | Location | Event 7 | -11/Scrapyard | Discovered new exit (range 16) 77 | -11/Scrapyard | Entered Materials 305 | -10/Materials | Build established: Mutant 316 | -10/Materials | Discovered new exit (range 8) 360 | -10/Materials | Entered Subcaves 409 | -10/Subcaves | Shifting Twisted Machinery released Sub. Laser 449 | -10/Subcaves | A swath of the cavern ceiling suddenly collapsed 802 | -10/Subcaves | Learned Materials trap positions 863 | -10/Subcaves | Disturbed a concealed Subdweller 983 | -10/Subcaves | Ambushed by Subdwellers from Twisted Machinery 1022 | -10/Subcaves | Discovered new exit (range 11) 1045 | -10/Subcaves | Core integrity fell below 50% 1046 | -10/Subcaves | Ambushed by Subdweller buried in earth 1046 | -10/Subcaves | Ambushed by Subdweller buried in earth 1050 | -10/Subcaves | Core integrity fell below 20% 1060 | -10/Subcaves | Destroyed by 0S-OX3(R) with Subdweller Laser Last Messages --------------- 00964_ Triggered Shrapnel Trap. 00964_ An expanding cloud of shrapnel blasts out in all directions. 00967_ Subatomizers dissect the Wheel. 00970_ Acquired Sub. Optics. 00976_ Dropped Aluminum Leg. 00978_ Acquired 43 matter. 00981_ Subatomizers dissect the Wheel. 00981_ Acquired Sub. Shrapnel Launcher. 00984_ Dropped Assault Rifle. 01021_ Acquired 8 matter. 01021_ Sub. Monowheel shoots sparks and powers down. 01022_ EXIT=FOUND 01025_ Acquired 5 matter. 01029_ Acquired 12 matter. 01047_ O7-H85(R): "ARGHSUB!" 01047_ 0S-OX3(R): "ARGHSUB!" 01047_ Sub. Monowheel destroyed. 01055_ Barrage Gun destroyed. Map ----- +----------------------------------------------------+ | | | | | | | | | | | | | | | | | | | | | | | ?????????????????????????????????????????????????? | | ?????????????????????????????????????????????????? | | ?????????????????????????????????????????????????? | | ?????????????????????????????????????????????????? | | ?????????????????????????????????????????????????? | | ?????????????????????????????????????????????????? | | ?????????????????????#########???????????????????? | | ????????????????????## # #???????????????????? | | ????????????????????# ; #???????????????????? | | ????????????????????# $$$#???????????????????? | | ????????????????????# R R ;#???????????????????? | | ????????????????????# R ;##???????????????????? | | ????????????????????# ;#???????????????????? | | ????????????????????# ;#???????????????????? | | ????????????????????# ;;@ ###?#####??####?????? | | ????????????????????#### ### #### ##????? | | ??????????????????????# ## ##?### | | ??????????????????????# < ### | | ??????????????????????## ##### | | ???????????????????????## ###???# | | ????????????????????????## ##?????######## | | ?????????????????????????###?????????????####### | | ???????????????????????????????????????????????### | | ?????????????????????????????????????????????????# | | ?????????????????????????????????????????????????? | | ?????????????????????????????????????????????????? | | ?????????????????????????????????????????????????# | | ?????????????????????????????????????????????????# | | ?????????????????????????????????????????????????# | | ????????????????????????????????????????????????? | | ????????????????????????????????????????????????# | | ????????????????????????????????????????????????# | | ????????????????????????????????????????????????# | | ????????????????????????????????????????????????# | | ????????????????????????????????????????????????## | | ?????????????????????????????????????????????????# | | ?????????????????????????????????????????????????? | | ?????????????????????????????????????????????????? | | ?????????????????????????????????????????????????? | +----------------------------------------------------+ Best States ------------- Heat Dissipation 25 Energy Generation 15 Energy Capacity 200 Matter Stores 272 Matter Capacity 300 Sight Range 21 Terrain Scan Density 10 ECM Strength 1 Evasion (%) 55 Item Schematics ----------------- None Robot Schematics ------------------ None Fabricated ------------ Nothing Repaired ---------- Nothing Studied --------- None Alien Tech Used ----------------- None Achievements -------------- None Challenges ------------ None Game ------ Seed PulseKineticReconfigurator Manual? 0 Play Time 00:08:04 Cumulative 247.3 hours Start 2026.08.19 @ 14:14:11 End 2026.08.19 @ 14:22:06 Sessions 1 Manual Loads 0 Difficulty Rogue Special Mode None Game No. 308 Rogue 134 Adventurer 174 Explorer 0 Win Type - Total 1 Types 1/0/0/0/0/0/0/0/0/0 Lore% 68 Gallery% 57 Achievement% 42 Wizard Run 0 Options --------- Layout 2 ASCII 0 Keyboard 1 Movement Numpad Keybinds 0 Fullscreen 1 Font 24/Smallcaps Map View 50x44 Zoom Use 0% Tactical HUD 1 Map Filters NONE Filters NONE Steam 1 RUN: f44f5bc1-053b-4f52-9ba1-3d6e0ce49d98